[Event "MČR v bleskovém šachu družstev 2019"]
[Site "Teplice, Czech Republic"]
[Date "2019.09.14"]
[Round "8.7"]
[White "Marsalek, Zdenek"]
[Black "Dolezal, Radoslav"]
[Result "0-1"]
[TimeControl "3 mim. + 2 s"]
[BlackTitle "IM"]
[BlackFideId "304735"]
[WhiteElo "2272"]
[BlackElo "2359"]

1. d4 {[%clk 00:03:04]} {[%emt 00:15:40]} Nf6 {[%clk 00:03:01]} {[%emt
00:00:03]} 2. Nf3 {[%clk 00:03:05]} e6 {[%clk 00:03:02]} 3. g3 {[%clk
00:03:05]} {[%emt 00:00:02]} c5 {[%clk 00:03:03]} {[%emt 00:00:02]} 4. Bg2
{[%clk 00:03:06]} Nc6 {[%clk 00:03:03]} {[%emt 00:00:03]} 5. O-O {[%clk
00:03:06]} {[%emt 00:00:02]} b5 {[%clk 00:03:01]} {[%emt 00:00:04]} 6. b3
{[%clk 00:03:02]} {[%emt 00:00:06]} Bb7 {[%clk 00:02:57]} {[%emt 00:00:06]} 7.
dxc5 {[%clk 00:02:59]} {[%emt 00:00:04]} Bxc5 {[%clk 00:02:56]} {[%emt
00:00:03]} 8. Bb2 {[%clk 00:03:00]} O-O {[%clk 00:02:53]} {[%emt 00:00:07]} 9.
Ne5 {[%clk 00:02:57]} {[%emt 00:00:06]} Rc8 {[%clk 00:01:50]} {[%emt 00:01:04]}
10. Nd2 {[%clk 00:02:47]} {[%emt 00:00:11]} d5 {[%clk 00:01:35]} {[%emt
00:00:18]} 11. e3 {[%clk 00:02:35]} {[%emt 00:00:15]} Qe7 {[%clk 00:01:03]}
{[%emt 00:00:34]} 12. Rc1 {[%clk 00:02:26]} {[%emt 00:00:11]} Nxe5 {[%clk
00:00:58]} {[%emt 00:00:06]} 13. Bxe5 {[%clk 00:02:25]} {[%emt 00:00:03]} Ba3
{[%clk 00:00:59]} 14. Rb1 {[%clk 00:02:22]} {[%emt 00:00:05]} a5 {[%clk
00:00:34]} {[%emt 00:00:27]} 15. c4 {[%clk 00:02:17]} {[%emt 00:00:07]} dxc4
{[%clk 00:00:26]} {[%emt 00:00:11]} 16. Bxb7 {[%clk 00:02:13]} {[%emt
00:00:05]} Qxb7 {[%clk 00:00:26]} {[%emt 00:00:02]} 17. bxc4 {[%clk 00:02:14]}
{[%emt 00:00:01]} b4 {[%clk 00:00:28]} {[%emt 00:00:01]} 18. Qa4 {[%clk
00:01:48]} {[%emt 00:00:26]} Qd7 {[%clk 00:00:19]} {[%emt 00:00:12]} 19. Qc2
{[%clk 00:01:40]} {[%emt 00:00:10]} Rfd8 {[%clk 00:00:16]} {[%emt 00:00:06]} 20.
Rfd1 {[%clk 00:01:39]} {[%emt 00:00:02]} Qd3 {[%clk 00:00:13]} {[%emt
00:00:05]} 21. Qb3 {[%clk 00:01:16]} {[%emt 00:00:24]} Ng4 {[%clk 00:00:08]}
{[%emt 00:00:08]} 22. Qxd3 {[%clk 00:00:51]} {[%emt 00:00:27]} Rxd3 {[%clk
00:00:08]} {[%emt 00:00:02]} 23. Bd4 {[%clk 00:00:50]} {[%emt 00:00:03]} e5
{[%emt 00:00:02]} 24. Bb6 {[%clk 00:00:47]} {[%emt 00:00:03]} a4 {[%clk
00:00:08]} {[%emt 00:00:03]} 25. Ne4 {[%clk 00:00:45]} {[%emt 00:00:04]} Rxd1+
{[%clk 00:00:06]} {[%emt 00:00:04]} 26. Rxd1 {[%clk 00:00:46]} {[%emt
00:00:01]} b3 {[%clk 00:00:04]} {[%emt 00:00:04]} 27. axb3 {[%clk 00:00:42]}
{[%emt 00:00:07]} axb3 {[%clk 00:00:05]} 28. c5 {[%clk 00:00:41]} {[%emt
00:00:03]} b2 {[%clk 00:00:04]} {[%emt 00:00:04]} 29. Rb1 {[%clk 00:00:36]}
{[%emt 00:00:07]} f5 {[%clk 00:00:04]} {[%emt 00:00:02]} 30. Nd6 {[%clk
00:00:37]} {[%emt 00:00:01]} Rc6 {[%clk 00:00:04]} {[%emt 00:00:02]} 31. Nxf5
{[%clk 00:00:36]} {[%emt 00:00:02]} Kf7 {[%clk 00:00:04]} {[%emt 00:00:02]} 32.
Nd6+ {[%clk 00:00:36]} {[%emt 00:00:03]} Ke6 {[%clk 00:00:04]} {[%emt
00:00:01]} 33. Nc4 {[%clk 00:00:37]} {[%emt 00:00:01]} Bxc5 {[%clk 00:00:04]}
{[%emt 00:00:02]} 34. Bxc5 {[%emt 00:00:03]} Rxc5 {[%emt 00:00:01]} 35. Nxb2
{[%clk 00:00:36]} Rb5 {[%clk 00:00:07]} {[%emt 00:00:01]} 36. Kg2 {[%clk
00:00:35]} {[%emt 00:00:03]} e4 {[%clk 00:00:07]} {[%emt 00:00:02]} 37. Kf1
{[%clk 00:00:31]} {[%emt 00:00:06]} Ne5 {[%clk 00:00:09]} 38. Ra1 {[%clk
00:00:29]} {[%emt 00:00:03]} Rxb2 {[%clk 00:00:09]} {[%emt 00:00:02]} 39. Ra7
{[%clk 00:00:30]} {[%emt 00:00:01]} Kf6 {[%clk 00:00:09]} {[%emt 00:00:02]} 40.
Ra6+ {[%clk 00:00:30]} {[%emt 00:00:02]} Kf5 {[%clk 00:00:09]} {[%emt
00:00:02]} 41. h3 {[%clk 00:00:29]} {[%emt 00:00:03]} h5 {[%clk 00:00:10]}
{[%emt 00:00:01]} 42. Kg2 {[%clk 00:00:29]} {[%emt 00:00:02]} Nd3 {[%clk
00:00:11]} 43. Ra5+ {[%clk 00:00:28]} {[%emt 00:00:03]} Kg6 {[%clk 00:00:12]}
{[%emt 00:00:01]} 44. Ra6+ {[%clk 00:00:29]} {[%emt 00:00:01]} Kh7 {[%clk
00:00:13]} 45. g4 {[%clk 00:00:29]} {[%emt 00:00:02]} hxg4 {[%clk 00:00:13]}
{[%emt 00:00:02]} 46. hxg4 {[%clk 00:00:30]} {[%emt 00:00:01]} Rxf2+ {[%clk
00:00:14]} {[%emt 00:00:01]} 47. Kg3 {[%clk 00:00:31]} Rf3+ {[%clk 00:00:15]}
48. Kh4 {[%clk 00:00:32]} Rxe3 {[%clk 00:00:16]} {[%emt 00:00:03]} 49. g5
{[%clk 00:00:33]} {[%emt 00:00:01]} Nf4 {[%clk 00:00:14]} {[%emt 00:00:04]} 50.
Kg4 {[%clk 00:00:34]} {[%emt 00:00:01]} Rf3 {[%clk 00:00:13]} {[%emt 00:00:04]}
51. Ra4 {[%clk 00:00:33]} {[%emt 00:00:02]} Ng6 {[%clk 00:00:10]} {[%emt
00:00:05]} 52. Rxe4 {[%clk 00:00:33]} {[%emt 00:00:03]} Rf1 {[%clk 00:00:11]}
{[%emt 00:00:01]} 53. Ra4 {[%clk 00:00:33]} {[%emt 00:00:02]} Kg8 {[%clk
00:00:11]} {[%emt 00:00:02]} 54. Ra8+ {[%clk 00:00:34]} Kf7 {[%clk 00:00:12]}
55. Ra7+ {[%clk 00:00:35]} Ne7 {[%clk 00:00:13]} 56. Ra4 {[%clk 00:00:35]}
{[%emt 00:00:02]} g6 {[%clk 00:00:14]} {[%emt 00:00:02]} 57. Rb4 {[%clk
00:00:35]} {[%emt 00:00:02]} Rd1 {[%clk 00:00:14]} {[%emt 00:00:01]} 58. Ra4
{[%clk 00:00:36]} {[%emt 00:00:02]} Ke6 {[%clk 00:00:14]} {[%emt 00:00:02]} 59.
Re4+ {[%clk 00:00:36]} {[%emt 00:00:02]} Kd6 {[%clk 00:00:15]} {[%emt
00:00:02]} 60. Ra4 {[%clk 00:00:37]} Ke5 {[%clk 00:00:14]} {[%emt 00:00:03]} 61.
Ra5+ {[%clk 00:00:35]} {[%emt 00:00:03]} Rd5 {[%clk 00:00:15]} {[%emt
00:00:02]} 62. Ra7 {[%clk 00:00:36]} {[%emt 00:00:01]} Rd4+ {[%clk 00:00:15]}
{[%emt 00:00:02]} 63. Kf3 {[%clk 00:00:36]} {[%emt 00:00:02]} Nd5 {[%clk
00:00:14]} {[%emt 00:00:03]} 64. Rg7 {[%clk 00:00:34]} {[%emt 00:00:04]} Kf5
{[%clk 00:00:14]} {[%emt 00:00:02]} 65. Rd7 {[%clk 00:00:35]} {[%emt 00:00:01]}
Kxg5 {[%clk 00:00:14]} {[%emt 00:00:02]} 66. Rd6 {[%clk 00:00:34]} {[%emt
00:00:02]} Kf5 {[%clk 00:00:15]} {[%emt 00:00:01]} 67. Rd8 {[%clk 00:00:35]}
{[%emt 00:00:01]} g5 {[%clk 00:00:15]} {[%emt 00:00:03]} 68. Kg3 {[%clk
00:00:35]} {[%emt 00:00:02]} Rd3+ {[%clk 00:00:16]} {[%emt 00:00:01]} 69. Kf2
{[%clk 00:00:35]} {[%emt 00:00:01]} g4 {[%clk 00:00:17]} {[%emt 00:00:01]} 70.
Rg8 {[%clk 00:00:35]} {[%emt 00:00:02]} Nf6 {[%clk 00:00:17]} {[%emt 00:00:02]}
71. Rg7 {[%clk 00:00:35]} {[%emt 00:00:02]} Ne4+ {[%clk 00:00:15]} {[%emt
00:00:03]} 72. Ke2 {[%clk 00:00:36]} {[%emt 00:00:02]} Ra3 {[%clk 00:00:16]}
{[%emt 00:00:01]} 73. Rg8 {[%clk 00:00:36]} {[%emt 00:00:02]} g3 {[%clk
00:00:15]} {[%emt 00:00:03]} 74. Kf1 {[%clk 00:00:37]} {[%emt 00:00:01]} Ra2
{[%clk 00:00:14]} {[%emt 00:00:03]} 75. Rg7 {[%clk 00:00:34]} {[%emt 00:00:04]}
Kf4 {[%clk 00:00:15]} {[%emt 00:00:01]} 76. Rg8 {[%clk 00:00:32]} {[%emt
00:00:04]} Ng5 {[%clk 00:00:11]} {[%emt 00:00:07]} 77. Rf8+ {[%clk 00:00:26]}
{[%emt 00:00:08]} Kg4 {[%clk 00:00:12]} {[%emt 00:00:01]} 78. Rg8 {[%clk
00:00:26]} {[%emt 00:00:02]} Rf2+ {[%clk 00:00:08]} {[%emt 00:00:06]} 79. Kg1
{[%clk 00:00:23]} {[%emt 00:00:04]} Rb2 {[%clk 00:00:08]} {[%emt 00:00:02]} 80.
Kf1 {[%clk 00:00:23]} {[%emt 00:00:02]} Kf4 {[%clk 00:00:08]} {[%emt 00:00:02]}
81. Rf8+ {[%clk 00:00:22]} {[%emt 00:00:03]} Ke3 {[%clk 00:00:09]} {[%emt
00:00:01]} 82. Rg8 {[%clk 00:00:20]} {[%emt 00:00:04]} Rf2+ {[%emt 00:00:04]}
83. Ke1 {[%clk 00:00:20]} {[%emt 00:00:01]} Nf3+ {[%clk 00:00:07]} {[%emt
00:00:03]} 84. Kd1 {[%clk 00:00:21]} {[%emt 00:00:01]} Rd2+ {[%clk 00:00:07]}
{[%emt 00:00:02]} 85. Kc1 {[%clk 00:00:22]} {[%emt 00:00:02]} g2 {[%clk
00:00:08]} 0-1

[Event "MČR v bleskovém šachu družstev 2019"]
[Site "Teplice, Czech Republic"]
[Date "2019.09.14"]
[Round "8.8"]
[White "Postupa, Pavel"]
[Black "Duran, Tomas"]
[Result "1-0"]
[TimeControl "3 mim. + 2 s"]
[WhiteFideId "326410"]
[WhiteElo "2184"]
[BlackElo "2135"]

1. e4 {[%clk 00:03:03]} d6 {[%clk 00:03:03]} {[%emt 00:00:02]} 2. d4 {[%clk
00:03:04]} {[%emt 00:00:01]} Nf6 {[%clk 00:03:03]} 3. Nc3 {[%clk 00:03:05]} e5
{[%clk 00:03:05]} 4. Nf3 {[%clk 00:03:05]} {[%emt 00:00:04]} Nbd7 {[%clk
00:03:04]} {[%emt 00:00:02]} 5. Bc4 {[%clk 00:03:07]} {[%emt 00:00:01]} Be7
{[%clk 00:03:06]} 6. a4 {[%clk 00:03:07]} {[%emt 00:00:02]} O-O {[%clk
00:03:04]} {[%emt 00:00:04]} 7. O-O {[%clk 00:03:08]} {[%emt 00:00:01]} c6
{[%clk 00:02:55]} {[%emt 00:00:10]} 8. Re1 {[%clk 00:03:08]} {[%emt 00:00:02]}
a5 {[%clk 00:02:51]} {[%emt 00:00:06]} 9. h3 {[%clk 00:03:06]} {[%emt
00:00:05]} Qc7 {[%clk 00:02:51]} {[%emt 00:00:02]} 10. Bd3 {[%clk 00:03:02]}
{[%emt 00:00:05]} Re8 {[%clk 00:02:44]} {[%emt 00:00:09]} 11. Ne2 {[%clk
00:03:01]} {[%emt 00:00:03]} Bf8 {[%clk 00:02:35]} {[%emt 00:00:11]} 12. Ng3
{[%clk 00:03:01]} {[%emt 00:00:01]} exd4 {[%clk 00:02:26]} {[%emt 00:00:12]} 13.
Nxd4 {[%clk 00:02:58]} {[%emt 00:00:06]} Nc5 {[%clk 00:02:27]} {[%emt
00:00:01]} 14. c3 {[%clk 00:02:37]} {[%emt 00:00:22]} Nxd3 {[%clk 00:02:13]}
{[%emt 00:00:15]} 15. Qxd3 {[%clk 00:02:38]} {[%emt 00:00:01]} Nd7 {[%clk
00:02:13]} {[%emt 00:00:02]} 16. Bf4 {[%clk 00:02:32]} {[%emt 00:00:08]} Ne5
{[%clk 00:02:08]} {[%emt 00:00:07]} 17. Bxe5 {[%clk 00:02:20]} {[%emt
00:00:14]} dxe5 {[%clk 00:02:09]} {[%emt 00:00:01]} 18. Ndf5 {[%clk 00:02:21]}
{[%emt 00:00:01]} g6 {[%clk 00:02:03]} {[%emt 00:00:08]} 19. Ne3 {[%clk
00:02:18]} {[%emt 00:00:04]} Be6 {[%clk 00:02:03]} {[%emt 00:00:02]} 20. Ng4
{[%clk 00:02:15]} {[%emt 00:00:05]} Red8 {[%clk 00:01:53]} {[%emt 00:00:13]} 21.
Qf3 {[%clk 00:02:12]} {[%emt 00:00:05]} Bg7 {[%clk 00:01:34]} {[%emt 00:00:21]}
22. h4 {[%clk 00:01:58]} {[%emt 00:00:16]} Qe7 {[%clk 00:01:20]} {[%emt
00:00:16]} 23. h5 {[%clk 00:01:44]} {[%emt 00:00:16]} Qg5 {[%clk 00:01:18]}
{[%emt 00:00:04]} 24. Ne3 {[%clk 00:01:45]} {[%emt 00:00:01]} Rd3 {[%clk
00:01:11]} {[%emt 00:00:09]} 25. Red1 {[%clk 00:01:40]} {[%emt 00:00:07]} Rad8
{[%clk 00:01:12]} {[%emt 00:00:01]} 26. Rxd3 {[%clk 00:01:41]} {[%emt
00:00:01]} Rxd3 {[%clk 00:01:13]} {[%emt 00:00:01]} 27. Qe2 {[%clk 00:01:41]}
{[%emt 00:00:02]} Qd8 {[%clk 00:01:05]} {[%emt 00:00:10]} 28. Ngf1 {[%clk
00:01:21]} {[%emt 00:00:22]} Bb3 {[%clk 00:01:00]} {[%emt 00:00:07]} 29. Ra3
{[%clk 00:01:16]} {[%emt 00:00:07]} Be6 {[%clk 00:00:53]} {[%emt 00:00:09]} 30.
Nd5 {[%clk 00:01:17]} {[%emt 00:00:02]} Rxd5 {[%clk 00:00:45]} {[%emt
00:00:10]} 31. exd5 {[%clk 00:01:17]} {[%emt 00:00:01]} Qxd5 {[%clk 00:00:44]}
{[%emt 00:00:03]} 32. Ra1 {[%clk 00:01:13]} {[%emt 00:00:06]} Qb3 {[%clk
00:00:32]} {[%emt 00:00:14]} 33. Ne3 {[%clk 00:01:07]} {[%emt 00:00:09]} Bh6
{[%clk 00:00:24]} {[%emt 00:00:10]} 34. Rd1 {[%clk 00:00:57]} {[%emt 00:00:12]}
Qxa4 {[%clk 00:00:10]} {[%emt 00:00:15]} 35. Rd8+ {[%emt 00:00:02]} Kg7 36.
hxg6 {[%clk 00:00:45]} {[%emt 00:00:14]} hxg6 {[%clk 00:00:13]} {[%emt
00:00:01]} 37. Qd2 {[%clk 00:00:36]} {[%emt 00:00:10]} Qb5 {[%clk 00:00:12]}
{[%emt 00:00:04]} 38. b4 {[%clk 00:00:32]} {[%emt 00:00:06]} Bf4 {[%clk
00:00:11]} {[%emt 00:00:03]} 39. Rb8 {[%clk 00:00:26]} {[%emt 00:00:08]} Qb6
{[%clk 00:00:09]} {[%emt 00:00:04]} 40. Qd8 {[%clk 00:00:26]} {[%emt 00:00:02]}
Kh6 {[%clk 00:00:06]} {[%emt 00:00:05]} 41. Qh4+ {[%clk 00:00:24]} {[%emt
00:00:04]} Kg7 {[%clk 00:00:06]} {[%emt 00:00:01]} 42. Qh8# 1-0

[Event "MČR v bleskovém šachu družstev 2019"]
[Site "Teplice, Czech Republic"]
[Date "2019.09.14"]
[Round "8.9"]
[White "Vykouk, Jan"]
[Black "Krejci, Jan"]
[Result "1-0"]
[TimeControl "3 mim. + 2 s"]
[WhiteTitle "IM"]
[BlackTitle "GM"]
[BlackFideId "322156"]
[WhiteElo "2439"]
[BlackElo "2527"]

1. e4 {[%emt 00:14:01]} e5 {[%emt 00:00:01]} 2. Nf3 {[%emt 00:00:01]} Nc6 3.
Bc4 Bc5 {[%emt 00:00:02]} 4. c3 {[%emt 00:00:05]} Nf6 {[%emt 00:00:02]} 5. d4
{[%emt 00:00:01]} exd4 {[%emt 00:00:01]} 6. O-O {[%emt 00:00:02]} d6 {[%emt
00:00:33]} 7. cxd4 {[%emt 00:00:02]} Bb6 8. Nc3 {[%emt 00:00:49]} Bg4 {[%emt
00:00:02]} 9. Be3 {[%emt 00:00:08]} Bxf3 {[%emt 00:00:06]} 10. gxf3 {[%emt
00:00:02]} O-O {[%emt 00:00:05]} 11. Kh1 {[%emt 00:00:03]} Ne7 {[%emt
00:00:07]} 12. Bd3 {[%emt 00:00:09]} d5 {[%emt 00:00:24]} 13. e5 {[%emt
00:00:02]} Nd7 14. f4 {[%emt 00:00:10]} f5 {[%emt 00:00:01]} 15. Rg1 {[%emt
00:00:26]} c5 {[%emt 00:00:01]} 16. Ne2 {[%emt 00:00:10]} cxd4 {[%emt
00:00:10]} 17. Bxd4 {[%emt 00:00:03]} Nc5 {[%emt 00:00:09]} 18. b4 {[%emt
00:00:01]} Ne6 {[%emt 00:00:01]} 19. Be3 {[%emt 00:00:21]} d4 {[%emt 00:00:02]}
20. Bd2 {[%emt 00:00:01]} Qd5+ {[%emt 00:00:08]} 21. Rg2 {[%emt 00:00:06]} Ng6
22. Qb3 {[%emt 00:00:09]} Qd7 {[%emt 00:00:21]} 23. Bc4 {[%emt 00:00:03]} Rae8
24. a4 {[%emt 00:00:11]} a6 {[%emt 00:00:05]} 25. a5 {[%emt 00:00:06]} Ba7
{[%emt 00:00:03]} 26. b5 {[%emt 00:00:01]} Kh8 {[%emt 00:00:11]} 27. b6 {[%emt
00:00:06]} Bb8 {[%emt 00:00:02]} 28. Qh3 {[%emt 00:00:13]} Ne7 {[%emt
00:00:14]} 29. Rag1 {[%emt 00:00:10]} Nd5 {[%emt 00:00:02]} 30. Bd3 {[%emt
00:00:05]} Nc5 {[%emt 00:00:07]} 31. Rxg7 {[%emt 00:00:03]} Qxg7 {[%emt
00:00:01]} 32. Rxg7 {[%emt 00:00:01]} Kxg7 33. Bxf5 {[%emt 00:00:01]} Rf7
{[%emt 00:00:13]} 34. Qg2+ {[%emt 00:00:01]} Kh8 {[%emt 00:00:11]} 35. Qxd5
{[%emt 00:00:01]} Rxf5 {[%emt 00:00:09]} 36. Qxc5 {[%emt 00:00:01]} Bxe5 {[%emt
00:00:01]} 37. fxe5 {[%emt 00:00:03]} Rxf2 {[%emt 00:00:01]} 38. Qxd4 {[%emt
00:00:03]} Rxe2 {[%emt 00:00:01]} 39. e6+ Kg8 {[%emt 00:00:01]} 40. Qg4+ {[%emt
00:00:01]} Kf8 41. Qxe2 {[%emt 00:00:02]} 1-0

[Event "MČR v bleskovém šachu družstev 2019"]
[Site "Teplice, Czech Republic"]
[Date "2019.09.14"]
[Round "8.10"]
[White "Sorm, Daniel"]
[Black "Studnicka, Tomas"]
[Result "1-0"]
[TimeControl "3 mim. + 2 s"]
[WhiteTitle "FM"]
[BlackTitle "IM"]
[WhiteFideId "5400139"]
[WhiteElo "2310"]
[BlackElo "2215"]

1. d4 {[%clk 00:03:04]} {[%emt 00:17:27]} Nf6 {[%clk 00:03:03]} {[%emt
00:00:01]} 2. c4 {[%clk 00:03:05]} {[%emt 00:00:01]} g6 {[%clk 00:03:05]} 3.
Nc3 {[%clk 00:03:06]} {[%emt 00:00:01]} Bg7 {[%clk 00:03:06]} 4. e4 {[%clk
00:03:07]} d6 {[%clk 00:03:07]} {[%emt 00:00:02]} 5. h3 {[%clk 00:03:05]}
{[%emt 00:00:04]} O-O {[%clk 00:03:06]} {[%emt 00:00:03]} 6. Bg5 {[%clk
00:03:07]} h6 {[%clk 00:03:00]} {[%emt 00:00:08]} 7. Be3 {[%clk 00:03:08]} e5
{[%clk 00:02:56]} {[%emt 00:00:06]} 8. d5 {[%clk 00:03:09]} {[%emt 00:00:01]}
a5 {[%clk 00:02:44]} {[%emt 00:00:14]} 9. Bd3 {[%clk 00:03:09]} {[%emt
00:00:02]} Na6 {[%clk 00:02:44]} {[%emt 00:00:02]} 10. Qd2 {[%clk 00:03:09]}
{[%emt 00:00:02]} Kh7 {[%clk 00:02:45]} {[%emt 00:00:02]} 11. Nge2 {[%clk
00:03:09]} {[%emt 00:00:02]} b6 {[%clk 00:02:43]} {[%emt 00:00:05]} 12. g4
{[%clk 00:03:09]} {[%emt 00:00:01]} Nd7 {[%clk 00:02:33]} {[%emt 00:00:12]} 13.
O-O-O {[%clk 00:02:59]} {[%emt 00:00:12]} Ndc5 {[%clk 00:02:26]} {[%emt
00:00:09]} 14. Bb1 {[%clk 00:02:54]} {[%emt 00:00:06]} a4 {[%clk 00:02:25]}
{[%emt 00:00:03]} 15. f3 {[%clk 00:02:52]} {[%emt 00:00:05]} Bd7 {[%clk
00:02:18]} {[%emt 00:00:09]} 16. h4 {[%clk 00:02:52]} {[%emt 00:00:02]} f5
{[%clk 00:02:08]} {[%emt 00:00:12]} 17. exf5 {[%clk 00:02:10]} {[%emt
00:00:45]} gxf5 {[%clk 00:02:08]} {[%emt 00:00:01]} 18. Ng3 {[%clk 00:02:11]}
e4 {[%clk 00:01:39]} {[%emt 00:00:31]} 19. Nxf5 {[%clk 00:02:11]} {[%emt
00:00:02]} Bxf5 {[%clk 00:01:32]} {[%emt 00:00:09]} 20. gxf5 {[%clk 00:02:12]}
{[%emt 00:00:01]} Nd3+ {[%clk 00:01:27]} {[%emt 00:00:06]} 21. Bxd3 {[%clk
00:02:11]} {[%emt 00:00:03]} exd3 {[%clk 00:01:28]} {[%emt 00:00:01]} 22. Rdg1
{[%clk 00:01:50]} {[%emt 00:00:23]} Qf6 {[%clk 00:01:22]} {[%emt 00:00:08]} 23.
Qg2 {[%clk 00:01:39]} {[%emt 00:00:13]} a3 {[%clk 00:01:18]} {[%emt 00:00:06]}
24. Kb1 {[%clk 00:01:20]} {[%emt 00:00:21]} Rg8 {[%clk 00:01:04]} {[%emt
00:00:15]} 25. Qg6+ {[%clk 00:00:54]} {[%emt 00:00:28]} Kh8 {[%clk 00:01:05]}
{[%emt 00:00:01]} 26. Bxh6 {[%clk 00:00:44]} {[%emt 00:00:12]} axb2 {[%clk
00:00:59]} {[%emt 00:00:08]} 27. Ne4 {[%clk 00:00:29]} {[%emt 00:00:17]} Qxg6
{[%clk 00:00:53]} {[%emt 00:00:08]} 28. Rxg6 {[%clk 00:00:29]} {[%emt
00:00:02]} Nc5 {[%clk 00:00:32]} {[%emt 00:00:23]} 29. f6 {[%clk 00:00:12]}
{[%emt 00:00:19]} Kh7 {[%clk 00:00:30]} {[%emt 00:00:04]} 30. Rxg7+ {[%clk
00:00:11]} {[%emt 00:00:03]} Kxh6 {[%clk 00:00:31]} {[%emt 00:00:01]} 31. Rhg1
{[%clk 00:00:11]} {[%emt 00:00:02]} Rxg7 {[%clk 00:00:27]} {[%emt 00:00:07]} 32.
Rxg7 {[%clk 00:00:07]} {[%emt 00:00:06]} Nxe4 {[%clk 00:00:19]} {[%emt
00:00:10]} 33. fxe4 {[%clk 00:00:09]} {[%emt 00:00:01]} Rf8 {[%clk 00:00:20]}
34. Kxb2 {[%clk 00:00:08]} {[%emt 00:00:02]} Rxf6 {[%clk 00:00:21]} 35. Rxc7
{[%clk 00:00:07]} {[%emt 00:00:04]} Rf2+ {[%clk 00:00:20]} {[%emt 00:00:03]} 36.
Kc3 {[%clk 00:00:06]} {[%emt 00:00:03]} d2 {[%clk 00:00:19]} {[%emt 00:00:03]}
37. Kc2 {[%clk 00:00:07]} Kg6 {[%clk 00:00:11]} {[%emt 00:00:10]} 38. Rc6
{[%clk 00:00:08]} {[%emt 00:00:01]} Kf6 {[%clk 00:00:12]} 39. Rxd6+ {[%clk
00:00:09]} {[%emt 00:00:01]} Ke5 {[%clk 00:00:14]} 40. Rxb6 {[%clk 00:00:08]}
{[%emt 00:00:03]} Kd4 {[%clk 00:00:15]} {[%emt 00:00:01]} 41. Rb1 {[%clk
00:00:09]} Ke3 {[%clk 00:00:12]} {[%emt 00:00:04]} 42. Rd1 {[%clk 00:00:10]}
{[%emt 00:00:02]} Rf4 {[%clk 00:00:13]} {[%emt 00:00:01]} 43. Rxd2 {[%clk
00:00:09]} {[%emt 00:00:03]} Rxe4 {[%clk 00:00:13]} {[%emt 00:00:01]} 44. Kc3
{[%clk 00:00:09]} {[%emt 00:00:01]} Rxh4 {[%clk 00:00:11]} {[%emt 00:00:05]} 45.
d6 {[%clk 00:00:10]} {[%emt 00:00:02]} 1-0